[Event "*** Titled Tuesday Blitz"]
[Site "Chess.com"]
[Date "2020.04.07"]
[Round "7"]
[White "SavelievAlexei"]
[Black "annamaja"]
[Result "0-1"]
[WhiteElo "2409"]
[BlackElo "2284"]
[TimeControl "180+1"]
[EndTime "14:19:38 PDT"]
[Termination "annamaja won on time"]

1. e4 {[%clk 0:03:00.9]} 1... c6 {[%clk 0:02:58.8]} 2. d4 {[%clk 0:03:00.4]}
2... d5 {[%clk 0:02:58.3]} 3. exd5 {[%clk 0:03:01.3]} 3... cxd5 {[%clk
0:02:57.9]} 4. Bd3 {[%clk 0:03:01.9]} 4... Nc6 {[%clk 0:02:57.4]} 5. c3 {[%clk
0:03:02.2]} 5... Qc7 {[%clk 0:02:57.1]} 6. Ne2 {[%clk 0:02:58.3]} 6... e6 {[%clk
0:02:47.1]} 7. Bf4 {[%clk 0:02:53.7]} 7... Bd6 {[%clk 0:02:46.5]} 8. Bxd6 {[%clk
0:02:53.8]} 8... Qxd6 {[%clk 0:02:47.4]} 9. O-O {[%clk 0:02:53.9]} 9... Nf6
{[%clk 0:02:47]} 10. Nd2 {[%clk 0:02:53.6]} 10... O-O {[%clk 0:02:46.7]} 11. Nf3
{[%clk 0:02:54.2]} 11... e5 {[%clk 0:02:41.7]} 12. dxe5 {[%clk 0:02:53.8]} 12...
Nxe5 {[%clk 0:02:41.4]} 13. Nxe5 {[%clk 0:02:51.3]} 13... Qxe5 {[%clk
0:02:42.3]} 14. Re1 {[%clk 0:02:51.3]} 14... Bg4 {[%clk 0:02:27.2]} 15. Qd2
{[%clk 0:02:50.9]} 15... Bxe2 {[%clk 0:01:36]} 16. Rxe2 {[%clk 0:02:51.8]} 16...
Qh5 {[%clk 0:01:34.4]} 17. h3 {[%clk 0:02:42]} 17... Rfe8 {[%clk 0:01:26.8]} 18.
Rae1 {[%clk 0:02:41.1]} 18... g6 {[%clk 0:01:14.1]} 19. Bc2 {[%clk 0:02:18.8]}
19... b6 {[%clk 0:00:42.3]} 20. Bb3 {[%clk 0:02:04.8]} 20... Rxe2 {[%clk
0:00:36.9]} 21. Rxe2 {[%clk 0:02:03.7]} 21... Rd8 {[%clk 0:00:34.7]} 22. Re3
{[%clk 0:02:01.4]} 22... Qf5 {[%clk 0:00:30.7]} 23. Qd4 {[%clk 0:01:57.6]} 23...
Rd6 {[%clk 0:00:09.9]} 24. c4 {[%clk 0:01:24.7]} 24... Qb1+ {[%clk 0:00:07.3]}
25. Kh2 {[%clk 0:01:24]} 25... Qf5 {[%clk 0:00:04.6]} 26. Re5 {[%clk 0:01:19.7]}
26... Qd7 {[%clk 0:00:02.9]} 27. cxd5 {[%clk 0:01:17.7]} 27... a5 {[%clk
0:00:03.2]} 28. a3 {[%clk 0:01:16.9]} 28... b5 {[%clk 0:00:03]} 29. Qd2 {[%clk
0:00:26.1]} 29... Qc7 {[%clk 0:00:02.6]} 30. f4 {[%clk 0:00:24.1]} 30... a4
{[%clk 0:00:03]} 31. Ba2 {[%clk 0:00:23.6]} 31... Nd7 {[%clk 0:00:02.8]} 32.
Re8+ {[%clk 0:00:22.9]} 32... Kg7 {[%clk 0:00:03.2]} 33. Qd4+ {[%clk 0:00:22.3]}
33... Rf6 {[%clk 0:00:03.8]} 34. Re4 {[%clk 0:00:12.8]} 34... Qd6 {[%clk
0:00:04.3]} 35. g4 {[%clk 0:00:11.6]} 35... Nc5 {[%clk 0:00:03.9]} 36. g5 {[%clk
0:00:08]} 36... Nxe4 {[%clk 0:00:03]} 37. gxf6+ {[%clk 0:00:08.1]} 37... Nxf6
{[%clk 0:00:03.9]} 38. Kg3 {[%clk 0:00:04.4]} 38... h6 {[%clk 0:00:04.5]} 39.
Kf3 {[%clk 0:00:04.7]} 39... g5 {[%clk 0:00:04.7]} 40. b3 {[%clk 0:00:04.9]}
40... gxf4 {[%clk 0:00:04.1]} 41. bxa4 {[%clk 0:00:04.3]} 41... bxa4 {[%clk
0:00:05]} 42. Qxf4 {[%clk 0:00:04.4]} 42... Qxf4+ {[%clk 0:00:04.6]} 43. Kxf4
{[%clk 0:00:04.6]} 43... Nd7 {[%clk 0:00:04.9]} 44. Ke4 {[%clk 0:00:04.2]} 44...
Kf6 {[%clk 0:00:05.3]} 45. Kd4 {[%clk 0:00:04.6]} 45... Ne5 {[%clk 0:00:04.3]}
46. Kc5 {[%clk 0:00:04.4]} 46... Ke7 {[%clk 0:00:03]} 47. Kb5 {[%clk 0:00:03.8]}
47... Kd6 {[%clk 0:00:02.7]} 48. Kxa4 {[%clk 0:00:04.3]} 48... f5 {[%clk
0:00:03.2]} 0-1

[Event "*** Titled Tuesday Blitz"]
[Site "Chess.com"]
[Date "2020.04.07"]
[Round "7"]
[White "Qvalda"]
[Black "saraswathii"]
[Result "0-1"]
[WhiteElo "2373"]
[BlackElo "2247"]
[TimeControl "180+1"]
[EndTime "14:19:42 PDT"]
[Termination "saraswathii won on time"]

1. e4 {[%clk 0:03:00.9]} 1... c5 {[%clk 0:02:59.7]} 2. Be2 {[%clk 0:03:00.1]}
2... e6 {[%clk 0:02:59.2]} 3. d3 {[%clk 0:02:59]} 3... Nc6 {[%clk 0:02:58.1]} 4.
f4 {[%clk 0:02:59.2]} 4... d5 {[%clk 0:02:58.4]} 5. Nf3 {[%clk 0:02:58.1]} 5...
Nf6 {[%clk 0:02:57.8]} 6. e5 {[%clk 0:02:57.4]} 6... Nd7 {[%clk 0:02:57.4]} 7.
c3 {[%clk 0:02:56.9]} 7... g6 {[%clk 0:02:53.6]} 8. d4 {[%clk 0:02:53.9]} 8...
Bg7 {[%clk 0:02:53.1]} 9. O-O {[%clk 0:02:53]} 9... O-O {[%clk 0:02:52.9]} 10.
Be3 {[%clk 0:02:39]} 10... cxd4 {[%clk 0:02:52.1]} 11. cxd4 {[%clk 0:02:38.8]}
11... f6 {[%clk 0:02:51.6]} 12. Nc3 {[%clk 0:02:34.6]} 12... b6 {[%clk
0:02:45.1]} 13. Rc1 {[%clk 0:02:30.4]} 13... a6 {[%clk 0:02:43.1]} 14. Nxd5
{[%clk 0:02:24]} 14... Bb7 {[%clk 0:02:32.6]} 15. Nc3 {[%clk 0:02:08.8]} 15...
Qe7 {[%clk 0:02:26.8]} 16. d5 {[%clk 0:01:59.5]} 16... exd5 {[%clk 0:02:24.3]}
17. Nxd5 {[%clk 0:01:53.1]} 17... Qd8 {[%clk 0:02:21.6]} 18. e6 {[%clk
0:01:44.1]} 18... Ndb8 {[%clk 0:02:18.8]} 19. Nxb6 {[%clk 0:01:19.2]} 19... Ra7
{[%clk 0:02:16.6]} 20. Qxd8 {[%clk 0:00:58.1]} 20... Rxd8 {[%clk 0:02:13.6]} 21.
Rfd1 {[%clk 0:00:50.2]} 21... Re8 {[%clk 0:02:09.1]} 22. Nd4 {[%clk 0:00:28.1]}
22... f5 {[%clk 0:01:50.2]} 23. Nxc6 {[%clk 0:00:25.3]} 23... Nxc6 {[%clk
0:01:51.1]} 24. Bf3 {[%clk 0:00:19.8]} 24... Nb4 {[%clk 0:01:42.1]} 25. Nd7
{[%clk 0:00:16.7]} 25... Bxf3 {[%clk 0:01:40.5]} 26. gxf3 {[%clk 0:00:15]} 26...
Raa8 {[%clk 0:01:32.8]} 27. Nc5 {[%clk 0:00:14]} 27... Nxa2 {[%clk 0:01:29.4]}
28. Rc4 {[%clk 0:00:13.9]} 28... a5 {[%clk 0:01:27.2]} 29. Ra1 {[%clk
0:00:13.5]} 29... Nb4 {[%clk 0:01:26.1]} 30. Kf2 {[%clk 0:00:07.1]} 30... Nd5
{[%clk 0:01:25.1]} 31. Bd4 {[%clk 0:00:06]} 31... Rec8 {[%clk 0:01:23.1]} 32.
Bxg7 {[%clk 0:00:05.8]} 32... Kxg7 {[%clk 0:01:24]} 33. Rd1 {[%clk 0:00:04.9]}
33... Nxf4 {[%clk 0:01:11.9]} 34. Rxf4 {[%clk 0:00:04.3]} 34... Rxc5 {[%clk
0:01:11.1]} 35. Rd7+ {[%clk 0:00:03.4]} 35... Kf6 {[%clk 0:01:11.2]} 36. Rxh7
{[%clk 0:00:01.8]} 36... Kxe6 {[%clk 0:01:11.2]} 37. Rd4 {[%clk 0:00:01.5]}
37... Rc2+ {[%clk 0:01:11.1]} 38. Kg3 {[%clk 0:00:01.4]} 38... Rxb2 {[%clk
0:01:08.3]} 39. Rg7 {[%clk 0:00:01.8]} 39... Kf6 {[%clk 0:01:07.7]} 40. Rdd7
{[%clk 0:00:01.7]} 40... Rb3 {[%clk 0:01:00.3]} 41. Rgf7+ {[%clk 0:00:01.8]}
41... Ke5 {[%clk 0:00:55.5]} 42. Rfe7+ {[%clk 0:00:02.1]} 42... Kf6 {[%clk
0:00:55.3]} 43. Rf7+ {[%clk 0:00:02]} 43... Ke6 {[%clk 0:00:51.5]} 44. Ra7
{[%clk 0:00:01.6]} 44... Rxa7 {[%clk 0:00:50.9]} 45. Rxa7 {[%clk 0:00:02.4]}
45... Ra3 {[%clk 0:00:50.4]} 46. h4 {[%clk 0:00:01.6]} 46... a4 {[%clk
0:00:47.6]} 47. Kf4 {[%clk 0:00:01.9]} 47... Kf6 {[%clk 0:00:46.2]} 48. Ra6+
{[%clk 0:00:02.1]} 48... Kf7 {[%clk 0:00:46.3]} 49. Kg5 {[%clk 0:00:02.1]} 49...
Rxf3 {[%clk 0:00:46.1]} 50. Ra7+ {[%clk 0:00:02.1]} 50... Ke6 {[%clk 0:00:45.6]}
51. Kxg6 {[%clk 0:00:02.6]} 51... Rg3+ {[%clk 0:00:45.8]} 52. Kh6 {[%clk
0:00:01.9]} 52... a3 {[%clk 0:00:45.5]} 53. h5 {[%clk 0:00:02.4]} 53... f4
{[%clk 0:00:45.9]} 54. Kh7 {[%clk 0:00:02.4]} 54... Re3 {[%clk 0:00:39.3]} 55.
Ra6+ {[%clk 0:00:02.5]} 55... Kf5 {[%clk 0:00:38.2]} 56. h6 {[%clk 0:00:03.3]}
56... f3 {[%clk 0:00:38.3]} 57. Ra5+ {[%clk 0:00:03.4]} 57... Kf6 {[%clk
0:00:36.2]} 58. Ra6+ {[%clk 0:00:03.3]} 58... Kg5 {[%clk 0:00:35.6]} 59. Ra5+
{[%clk 0:00:02.9]} 59... Kg4 {[%clk 0:00:35.2]} 60. Ra4+ {[%clk 0:00:02.1]}
60... Kg3 {[%clk 0:00:35]} 61. Kg6 {[%clk 0:00:02.4]} 61... f2 {[%clk
0:00:29.3]} 62. h7 {[%clk 0:00:01.6]} 62... Re6+ {[%clk 0:00:27.5]} 0-1

[Event "*** Titled Tuesday Blitz"]
[Site "Chess.com"]
[Date "2020.04.07"]
[Round "7"]
[White "Schandenfreude"]
[Black "alexwinter25"]
[Result "1-0"]
[WhiteElo "2517"]
[BlackElo "2341"]
[TimeControl "180+1"]
[EndTime "14:19:44 PDT"]
[Termination "Schandenfreude won by resignation"]

1. Nf3 {[%clk 0:03:00.9]} 1... d5 {[%clk 0:02:59.7]} 2. g3 {[%clk 0:03:00.8]}
2... Nf6 {[%clk 0:02:59.8]} 3. Bg2 {[%clk 0:03:01.1]} 3... e6 {[%clk 0:03:00.2]}
4. O-O {[%clk 0:03:00.7]} 4... Bd6 {[%clk 0:03:00.4]} 5. d4 {[%clk 0:02:58.6]}
5... Nbd7 {[%clk 0:03:00.1]} 6. c4 {[%clk 0:02:58.7]} 6... c6 {[%clk 0:03:00.4]}
7. Qc2 {[%clk 0:02:58.7]} 7... O-O {[%clk 0:02:56.7]} 8. Nc3 {[%clk 0:02:58.7]}
8... b6 {[%clk 0:02:52.2]} 9. Nd2 {[%clk 0:02:58.3]} 9... Bb7 {[%clk 0:02:49.5]}
10. e4 {[%clk 0:02:57.9]} 10... dxe4 {[%clk 0:02:43.8]} 11. Ndxe4 {[%clk
0:02:57.7]} 11... Nxe4 {[%clk 0:02:38.4]} 12. Nxe4 {[%clk 0:02:56.4]} 12... Be7
{[%clk 0:02:38.6]} 13. Rd1 {[%clk 0:02:55.6]} 13... c5 {[%clk 0:02:36.4]} 14.
dxc5 {[%clk 0:02:52.8]} 14... bxc5 {[%clk 0:02:20.2]} 15. Ng5 {[%clk 0:02:36.5]}
15... Bxg5 {[%clk 0:02:12.5]} 16. Bxb7 {[%clk 0:02:35.9]} 16... Bxc1 {[%clk
0:02:03.2]} 17. Bxa8 {[%clk 0:02:31.8]} 17... Qxa8 {[%clk 0:01:53.8]} 18. Rxd7
{[%clk 0:02:20.6]} 18... Bh6 {[%clk 0:01:47.2]} 19. Rad1 {[%clk 0:02:19.6]}
19... g6 {[%clk 0:01:35.8]} 20. Qd3 {[%clk 0:02:00.6]} 20... Qb8 {[%clk
0:01:21.9]} 21. b3 {[%clk 0:01:54.6]} 21... Bg5 {[%clk 0:01:19]} 22. h4 {[%clk
0:01:36.7]} 22... Bf6 {[%clk 0:01:17.7]} 23. Qf3 {[%clk 0:01:18.1]} 23... Bd4
{[%clk 0:01:08.8]} 24. h5 {[%clk 0:01:12.9]} 24... Qe5 {[%clk 0:00:40.3]} 25. h6
{[%clk 0:01:05.2]} 25... Qg5 {[%clk 0:00:34.2]} 26. Qf4 {[%clk 0:00:59.5]} 26...
Qh5 {[%clk 0:00:30.6]} 27. Re1 {[%clk 0:00:52.5]} 27... g5 {[%clk 0:00:25.5]}
28. Qe4 {[%clk 0:00:39.6]} 28... Qxh6 {[%clk 0:00:20.7]} 29. Kg2 {[%clk
0:00:37.9]} 29... Qf6 {[%clk 0:00:19]} 30. Qf3 {[%clk 0:00:34.6]} 30... Qg6
{[%clk 0:00:18.1]} 31. Rh1 {[%clk 0:00:27.9]} 31... e5 {[%clk 0:00:16.2]} 32.
Qh5 {[%clk 0:00:14.3]} 32... Qe4+ {[%clk 0:00:16]} 33. Qf3 {[%clk 0:00:14.4]}
33... Qg6 {[%clk 0:00:15.7]} 34. g4 {[%clk 0:00:14.1]} 34... h6 {[%clk
0:00:15.2]} 35. Qf5 {[%clk 0:00:13.9]} 35... Qxf5 {[%clk 0:00:15.3]} 36. gxf5
{[%clk 0:00:13.9]} 36... Kg7 {[%clk 0:00:16.2]} 37. Kf3 {[%clk 0:00:13.9]} 37...
Kf6 {[%clk 0:00:15.8]} 38. Rxh6+ {[%clk 0:00:11.7]} 38... Kxf5 {[%clk
0:00:16.3]} 39. Rh7 {[%clk 0:00:11.2]} 39... g4+ {[%clk 0:00:15.7]} 40. Kg2
{[%clk 0:00:10.9]} 40... f6 {[%clk 0:00:16]} 41. Rhf7 {[%clk 0:00:09.7]} 41...
Rh8 {[%clk 0:00:15.3]} 42. Rd6 {[%clk 0:00:09.6]} 42... Rh6 {[%clk 0:00:15.8]}
43. Rxa7 {[%clk 0:00:09.4]} 43... Rh3 {[%clk 0:00:15.4]} 44. Raa6 {[%clk
0:00:08.4]} 44... Rh6 {[%clk 0:00:14.8]} 45. a3 {[%clk 0:00:08.4]} 45... e4
{[%clk 0:00:15.2]} 46. Rd5+ {[%clk 0:00:07.5]} 46... Kf4 {[%clk 0:00:15.2]} 47.
Rad6 {[%clk 0:00:07.2]} 47... f5 {[%clk 0:00:15.7]} 48. Rxd4 {[%clk 0:00:06.8]}
48... cxd4 {[%clk 0:00:15.8]} 49. Rxd4 {[%clk 0:00:07.7]} 49... Rh3 {[%clk
0:00:16.2]} 50. b4 {[%clk 0:00:07.8]} 50... Rxa3 {[%clk 0:00:16.4]} 51. c5
{[%clk 0:00:08.3]} 51... Rb3 {[%clk 0:00:16.9]} 52. Rc4 {[%clk 0:00:08.3]} 52...
g3 {[%clk 0:00:16.4]} 53. fxg3+ {[%clk 0:00:07.8]} 53... Kg4 {[%clk 0:00:16.8]}
54. c6 {[%clk 0:00:08.5]} 54... Rb2+ {[%clk 0:00:17.3]} 55. Kf1 {[%clk
0:00:08.4]} 55... Kf3 {[%clk 0:00:16.5]} 56. Ke1 {[%clk 0:00:08.6]} 56... Rb1+
{[%clk 0:00:16.9]} 57. Kd2 {[%clk 0:00:08.4]} 57... Rg1 {[%clk 0:00:17.4]} 58.
c7 {[%clk 0:00:07.4]} 58... Rg2+ {[%clk 0:00:18.3]} 59. Kc3 {[%clk 0:00:07.5]}
59... Rxg3 {[%clk 0:00:18.3]} 60. c8=Q {[%clk 0:00:07.9]} 60... Kf4+ {[%clk
0:00:19.2]} 61. Kb2 {[%clk 0:00:08]} 61... Rd3 {[%clk 0:00:19.9]} 62. Rc3 {[%clk
0:00:07.8]} 62... Ke3 {[%clk 0:00:20.8]} 63. Rxd3+ {[%clk 0:00:08.1]} 63... exd3
{[%clk 0:00:21.6]} 64. Qxf5 {[%clk 0:00:08.4]} 64... d2 {[%clk 0:00:21.7]} 65.
Qd5 {[%clk 0:00:08.5]} 65... d1=Q {[%clk 0:00:22.6]} 66. Qxd1 {[%clk 0:00:06.7]}
66... Ke4 {[%clk 0:00:22.2]} 67. Qc2+ {[%clk 0:00:07.6]} 67... Ke5 {[%clk
0:00:23.1]} 68. b5 {[%clk 0:00:08.2]} 1-0

[Event "*** Titled Tuesday Blitz"]
[Site "Chess.com"]
[Date "2020.04.07"]
[Round "7"]
[White "dennisodessa"]
[Black "SCIM"]
[Result "1/2-1/2"]
[WhiteElo "2311"]
[BlackElo "2476"]
[TimeControl "180+1"]
[EndTime "14:19:46 PDT"]
[Termination "Game drawn by repetition"]

1. d4 {[%clk 0:02:59.6]} 1... Nf6 {[%clk 0:02:58]} 2. c4 {[%clk 0:02:59.8]} 2...
g6 {[%clk 0:02:58.1]} 3. Nc3 {[%clk 0:03:00.1]} 3... d5 {[%clk 0:02:58.1]} 4.
Bg5 {[%clk 0:02:59.9]} 4... Bg7 {[%clk 0:02:55.5]} 5. Bxf6 {[%clk 0:02:59.3]}
5... Bxf6 {[%clk 0:02:56.4]} 6. cxd5 {[%clk 0:03:00.2]} 6... c6 {[%clk
0:02:55.7]} 7. e3 {[%clk 0:02:57.8]} 7... cxd5 {[%clk 0:02:54.5]} 8. Bd3 {[%clk
0:02:54.7]} 8... O-O {[%clk 0:02:53.9]} 9. h3 {[%clk 0:02:54.4]} 9... Nc6 {[%clk
0:02:53.3]} 10. Nf3 {[%clk 0:02:54.7]} 10... Bg7 {[%clk 0:02:48.7]} 11. O-O
{[%clk 0:02:54]} 11... e6 {[%clk 0:02:46.3]} 12. Rc1 {[%clk 0:02:49.4]} 12...
Bd7 {[%clk 0:02:46]} 13. Na4 {[%clk 0:02:41.6]} 13... b6 {[%clk 0:02:43.4]} 14.
b3 {[%clk 0:02:27.2]} 14... e5 {[%clk 0:02:36.8]} 15. dxe5 {[%clk 0:02:21.9]}
15... Nxe5 {[%clk 0:02:37.7]} 16. Be2 {[%clk 0:02:18.4]} 16... Bxa4 {[%clk
0:02:14.5]} 17. bxa4 {[%clk 0:02:19.3]} 17... Qd6 {[%clk 0:02:13.1]} 18. Qd2
{[%clk 0:02:00.3]} 18... Rad8 {[%clk 0:02:05.9]} 19. Rfd1 {[%clk 0:01:59.6]}
19... Rfe8 {[%clk 0:01:50.6]} 20. a5 {[%clk 0:01:56.1]} 20... bxa5 {[%clk
0:01:35.5]} 21. Qxa5 {[%clk 0:01:57]} 21... Qb6 {[%clk 0:01:18.8]} 22. Rxd5
{[%clk 0:01:28.6]} 22... Rxd5 {[%clk 0:01:18.1]} 23. Qxd5 {[%clk 0:01:29.5]}
23... Rd8 {[%clk 0:01:14.8]} 24. Qb3 {[%clk 0:01:25.5]} 24... Nxf3+ {[%clk
0:01:04.1]} 25. Bxf3 {[%clk 0:01:25.2]} 25... Qa5 {[%clk 0:01:02.5]} 26. g3
{[%clk 0:01:00.3]} 26... Be5 {[%clk 0:00:56.1]} 27. Rd1 {[%clk 0:00:48.4]} 27...
Rxd1+ {[%clk 0:00:49.2]} 28. Bxd1 {[%clk 0:00:49.3]} 28... Kg7 {[%clk
0:00:40.3]} 29. Kg2 {[%clk 0:00:48.7]} 29... Qc7 {[%clk 0:00:39.8]} 30. h4
{[%clk 0:00:46.5]} 30... h5 {[%clk 0:00:39.1]} 31. Bf3 {[%clk 0:00:44.7]} 31...
a5 {[%clk 0:00:37.1]} 32. a4 {[%clk 0:00:41.5]} 32... Bf6 {[%clk 0:00:36.9]} 33.
Bd5 {[%clk 0:00:40.8]} 33... Be5 {[%clk 0:00:36.7]} 34. Qc4 {[%clk 0:00:35.9]}
34... Qxc4 {[%clk 0:00:34.9]} 35. Bxc4 {[%clk 0:00:36.8]} 35... Bc3 {[%clk
0:00:35.5]} 36. f3 {[%clk 0:00:35.5]} 36... f6 {[%clk 0:00:34.9]} 37. g4 {[%clk
0:00:31]} 37... Bd2 {[%clk 0:00:25.3]} 38. e4 {[%clk 0:00:30.2]} 38... Bf4
{[%clk 0:00:23.2]} 39. Kh3 {[%clk 0:00:22.2]} 39... Be5 {[%clk 0:00:21.8]} 40.
Bb5 {[%clk 0:00:21]} 40... Bf4 {[%clk 0:00:21.7]} 41. Bd7 {[%clk 0:00:20.7]}
41... Be5 {[%clk 0:00:21]} 42. Be8 {[%clk 0:00:19.3]} 42... Kh6 {[%clk
0:00:20.7]} 43. Bf7 {[%clk 0:00:16.1]} 43... Bf4 {[%clk 0:00:20.4]} 44. Be8
{[%clk 0:00:15.8]} 44... Be5 {[%clk 0:00:20.9]} 45. Kg2 {[%clk 0:00:16.2]} 45...
Bf4 {[%clk 0:00:20.7]} 46. Kf2 {[%clk 0:00:15]} 46... Be5 {[%clk 0:00:20.6]} 47.
Kg2 {[%clk 0:00:13.4]} 47... Bf4 {[%clk 0:00:20.7]} 48. gxh5 {[%clk 0:00:13.4]}
48... gxh5 {[%clk 0:00:19.7]} 49. Kh3 {[%clk 0:00:13.5]} 49... Be5 {[%clk
0:00:18.3]} 50. Kg2 {[%clk 0:00:13]} 50... Bf4 {[%clk 0:00:18.4]} 51. Kf2 {[%clk
0:00:09.8]} 51... Bd6 {[%clk 0:00:14.9]} 52. Kg2 {[%clk 0:00:08.9]} 52... Bc7
{[%clk 0:00:14.5]} 53. Kh3 {[%clk 0:00:08.5]} 53... Bf4 {[%clk 0:00:13.9]} 54.
Kg2 {[%clk 0:00:08.9]} 54... Bd2 {[%clk 0:00:13.6]} 55. Kh3 {[%clk 0:00:09.2]}
55... Bf4 {[%clk 0:00:11.4]} 56. Kg2 {[%clk 0:00:09.5]} 56... Be5 {[%clk
0:00:11.4]} 57. Kh3 {[%clk 0:00:09.3]} 57... Bf4 {[%clk 0:00:11.5]} 1/2-1/2

[Event "*** Titled Tuesday Blitz"]
[Site "Chess.com"]
[Date "2020.04.07"]
[Round "7"]
[White "Kimster98"]
[Black "Vugar_Manafov"]
[Result "1-0"]
[WhiteElo "2510"]
[BlackElo "2661"]
[TimeControl "180+1"]
[EndTime "14:19:47 PDT"]
[Termination "Kimster98 won on time"]

1. d4 {[%clk 0:03:00.9]} 1... Nf6 {[%clk 0:02:59.7]} 2. Bf4 {[%clk 0:03:00.7]}
2... e6 {[%clk 0:02:58.9]} 3. e3 {[%clk 0:02:58]} 3... Bd6 {[%clk 0:02:57.4]} 4.
Bxd6 {[%clk 0:02:51.4]} 4... cxd6 {[%clk 0:02:56.6]} 5. Nf3 {[%clk 0:02:50]}
5... O-O {[%clk 0:02:55]} 6. Bd3 {[%clk 0:02:50.4]} 6... b6 {[%clk 0:02:53.5]}
7. O-O {[%clk 0:02:49]} 7... Ba6 {[%clk 0:02:49.2]} 8. c4 {[%clk 0:02:35]} 8...
d5 {[%clk 0:02:43.3]} 9. cxd5 {[%clk 0:02:33.9]} 9... Bxd3 {[%clk 0:02:40.7]}
10. Qxd3 {[%clk 0:02:34.8]} 10... Nxd5 {[%clk 0:02:39.1]} 11. Nc3 {[%clk
0:02:35.3]} 11... Nf6 {[%clk 0:02:33.4]} 12. Rac1 {[%clk 0:02:10.4]} 12... d5
{[%clk 0:02:31.4]} 13. Ne5 {[%clk 0:02:09.1]} 13... Nfd7 {[%clk 0:02:28.5]} 14.
Nb5 {[%clk 0:02:02.5]} 14... Nxe5 {[%clk 0:02:23.8]} 15. dxe5 {[%clk 0:02:03.4]}
15... Na6 {[%clk 0:02:23.8]} 16. f4 {[%clk 0:01:58.1]} 16... Nc5 {[%clk
0:02:18.1]} 17. Qd4 {[%clk 0:01:58.1]} 17... Qd7 {[%clk 0:02:09.5]} 18. Nd6
{[%clk 0:01:57.9]} 18... Nb7 {[%clk 0:02:00.4]} 19. Nxb7 {[%clk 0:01:55.5]}
19... Qxb7 {[%clk 0:02:01.3]} 20. f5 {[%clk 0:01:37.6]} 20... exf5 {[%clk
0:02:00.5]} 21. Rxf5 {[%clk 0:01:37.4]} 21... Rac8 {[%clk 0:01:59.8]} 22. Rcf1
{[%clk 0:01:30.8]} 22... Rc4 {[%clk 0:01:47.9]} 23. Qd3 {[%clk 0:01:21.1]} 23...
Qd7 {[%clk 0:01:31.3]} 24. R5f4 {[%clk 0:00:59.2]} 24... Rxf4 {[%clk 0:00:36.7]}
25. exf4 {[%clk 0:00:57.9]} 25... Qc6 {[%clk 0:00:33.9]} 26. Rd1 {[%clk
0:00:54.4]} 26... Rd8 {[%clk 0:00:18.2]} 27. Qd4 {[%clk 0:00:53.9]} 27... g6
{[%clk 0:00:16.5]} 28. h3 {[%clk 0:00:49.7]} 28... Qc2 {[%clk 0:00:16.4]} 29.
Kh2 {[%clk 0:00:46.4]} 29... h5 {[%clk 0:00:13.6]} 30. Re1 {[%clk 0:00:37.7]}
30... Qf5 {[%clk 0:00:13.4]} 31. Re2 {[%clk 0:00:15.1]} 31... Qe6 {[%clk
0:00:12.5]} 32. g3 {[%clk 0:00:11.8]} 32... Rc8 {[%clk 0:00:12.1]} 33. Rd2
{[%clk 0:00:12.1]} 33... Rc5 {[%clk 0:00:09.4]} 34. b4 {[%clk 0:00:11.9]} 34...
Rc4 {[%clk 0:00:09.7]} 35. Qxd5 {[%clk 0:00:12.4]} 35... Qxd5 {[%clk 0:00:09.7]}
36. Rxd5 {[%clk 0:00:13.3]} 36... Rxb4 {[%clk 0:00:09.5]} 37. Rd2 {[%clk
0:00:13.5]} 37... Kf8 {[%clk 0:00:09.5]} 38. h4 {[%clk 0:00:12.9]} 38... Ke7
{[%clk 0:00:09.8]} 39. Kg2 {[%clk 0:00:13.3]} 39... a5 {[%clk 0:00:09.1]} 40.
Kf2 {[%clk 0:00:10.7]} 40... a4 {[%clk 0:00:09]} 41. Ke3 {[%clk 0:00:10.7]}
41... Ke6 {[%clk 0:00:06.4]} 42. Rd6+ {[%clk 0:00:10.8]} 42... Ke7 {[%clk
0:00:05.3]} 43. a3 {[%clk 0:00:10.6]} 43... Rb3+ {[%clk 0:00:04.9]} 44. Rd3
{[%clk 0:00:11.2]} 44... Rb1 {[%clk 0:00:01.6]} 45. Rd4 {[%clk 0:00:11.1]} 1-0